bitfinex-derivatives/quotes_SOLF0:USTF0_20220102
["timestamp","ask_amount","ask_price","bid_price","bid_amount"]
[1641102644784,12.10469317,176.0,175.94,39.2753]
[1641102644985,12.10469317,176.01,175.97,4.03454987]
[1641102645688,12.10469317,176.02,175.98,4.03431593]
[1641102646988,12.10469317,176.02,175.97,4.03435943]
[1641102647190,12.10469317,176.02,175.98,3.0]
[1641102647388,12.10469317,176.02,175.96,30.66479]
[1641102647690,12.10469317,176.03,175.99,4.03410688]
[1641102648091,12.10469317,176.03,175.99,9.19810688]
[1641102648490,12.10469317,176.03,175.99,5.164]
[1641102648689,12.10469317,176.04,176.0,4.03381826]
[1641102649288,12.10469317,176.05,176.01,4.03366547]
[1641102650291,12.10469317,176.05,175.99,27.66479]
[1641102650995,41.84780673,176.09,176.01,4.03348338]
[1641102651695,12.10053984,176.05,175.99,27.66479]
[1641102651893,12.10053984,176.05,175.98,32.3329]
[1641102653093,12.10053984,176.05,176.01,4.0335107]
[1641102653293,12.10053984,176.05,176.01,31.6983007]
[1641102653694,12.10053984,176.06,176.02,4.03335991]
[1641102654998,12.10053984,176.06,176.01,27.66479]
[1641102655399,12.10053984,176.06,176.02,4.03337196]
[1641102655899,12.10053984,176.06,176.01,27.66479]
[1641102656503,12.10053984,176.06,175.98,44.38192421]
[1641102656700,12.10053984,176.06,176.02,4.03337645]
[1641102657401,12.10053984,176.06,175.98,44.38192421]
[1641102657602,12.10053984,176.06,175.98,41.38192421]
[1641102657801,12.10053984,176.06,176.02,27.66479]
[1641102658000,12.10053984,176.06,176.02,31.69817807]
[1641102658404,12.10053984,176.06,176.02,4.03338807]
[1641102658602,12.10053984,176.06,176.0,4.03380902]
[1641102658802,12.10053984,176.04,176.0,4.03380902]
[1641102659804,6.376,176.06,176.0,4.03380902]
[1641102660007,12.10192207,176.03,175.99,31.69876402]
[1641102660607,14.84666951,176.05,176.01,4.03356813]
[1641102661611,29.3345,176.07,175.99,27.66479]
[1641102662308,29.3345,176.07,175.99,21.21113249]
[1641102663710,29.3345,176.07,175.97,3.0]
[1641102664212,33.6055,176.07,175.97,3.0]
[1641102664412,33.6055,176.07,175.99,27.66479]
[1641102665314,33.6055,176.07,175.97,3.0]
[1641102665517,29.3345,176.07,175.97,3.0]
[1641102666919,29.3345,176.07,175.96,32.5789]
[1641102667119,33.5235,176.07,175.96,32.5789]
[1641102667319,11.99951868,176.05,176.01,3.99983956]
[1641102667921,11.99951868,176.04,176.0,5.28789044]
[1641102668719,11.99951868,176.04,175.96,69.29271421]
[1641102668720,11.99951868,176.02,175.98,3.99983956]
[1641102669320,11.99951868,176.03,175.99,3.99983956]
[1641102670724,11.99951868,176.04,175.99,3.99983956]
[1641102671825,11.99951868,176.04,176.0,3.99983956]
[1641102672528,11.99951868,176.04,175.99,3.99983956]
[1641102673427,11.99951868,176.03,175.98,3.99983956]
[1641102674025,11.99951868,176.03,175.99,3.99983956]
[1641102675930,2.74550332,176.04,175.97,1.28805088]
[1641102675931,14.745022,176.04,176.0,3.99983956]
[1641102678031,11.99951868,176.03,175.99,3.99983956]
[1641102678232,11.99951868,176.03,175.99,6.99983956]
[1641102678434,11.99951868,176.03,175.99,3.99983956]
[1641102678832,11.99951868,176.05,176.01,3.99983956]
[1641102681932,11.99951868,176.04,176.0,3.99983956]
[1641102683634,11.99951868,176.04,176.01,3.99983956]
[1641102683835,14.745022,176.05,176.01,3.99983956]
[1641102684936,14.745022,176.05,176.01,5.28789044]
[1641102686041,11.99951868,176.04,176.0,3.99983956]
[1641102688745,11.99951868,176.04,176.0,5.28789044]
[1641102689847,14.745022,176.05,176.01,3.99983956]
[1641102691850,14.745022,176.05,176.01,10.44783956]
[1641102692148,80.59277085,176.19,176.04,5.67311511]
[1641102692149,12.09969737,176.08,176.04,5.67311511]
[1641102692350,30.56585965,176.12,176.07,58.32958]
[1641102692548,48.39264428,176.17,176.09,3.0]
[1641102692752,48.39264428,176.17,176.12,5.67070232]
[1641102693050,32.39264428,176.17,176.16,5.66941633]
[1641102693252,80.59277085,176.22,176.16,11.29541633]
[1641102693448,76.14481613,176.22,176.16,5.626]
[1641102693650,76.14481613,176.22,176.2,5.66829158]
[1641102693850,14.27626504,176.23,176.21,5.66684612]
[1641102694051,10.27886504,176.23,176.21,5.66684612]
[1641102694251,10.27886504,176.23,176.22,3.0]
[1641102694551,80.63205832,176.31,176.22,58.32958]
[1641102694750,80.63205832,176.31,176.23,3.0]
[1641102694950,80.63205832,176.31,176.25,3.0]
[1641102695152,80.63205832,176.31,176.25,5.011]
[1641102695352,80.63205832,176.31,176.28,3.0]
[1641102695559,80.63205832,176.31,176.27,3.0]
[1641102695753,14.23797033,176.39,176.29,3.0]
[1641102695952,14.23797033,176.39,176.29,9.789]
[1641102696153,14.23797033,176.39,176.31,3.0]
[1641102696354,14.23797033,176.39,176.35,27.66479]
[1641102696553,14.23797033,176.39,176.35,33.59479]
[1641102696953,40.0,176.4,176.35,33.59479]
[1641102697152,40.0,176.4,176.35,5.93]
[1641102698753,40.0,176.4,176.35,9.95610324]
[1641102699353,40.0,176.4,176.38,4.02610324]
[1641102699953,40.0,176.4,176.39,4.02610324]
[1641102700355,40.0,176.4,176.39,38.25089324]
[1641102700756,40.0,176.4,176.39,46.91308677]
[1641102700956,40.0,176.4,176.39,42.88698353]
[1641102701155,40.0,176.4,176.39,39.88698353]
[1641102701557,40.0,176.4,176.39,33.32698353]
[1641102702359,40.0,176.4,176.39,27.66479]
[1641102702656,40.0,176.4,176.32,5.66443865]
[1641102702856,44.908,176.4,176.32,5.66443865]
[1641102703058,44.908,176.4,176.32,13.98443865]
[1641102703456,44.908,176.4,176.38,4.02493531]
[1641102704256,44.908,176.4,176.37,4.02493531]
[1641102704457,72.57279,176.4,176.37,4.02493531]
[1641102704856,72.57279,176.4,176.35,4.02493531]
[1641102705658,72.57279,176.4,176.36,4.02493531]
[1641102705859,44.908,176.4,176.36,4.02493531]
[1641102707360,44.908,176.4,176.37,4.02493531]
[1641102707560,40.0,176.4,176.37,4.02493531]
[1641102708658,40.0,176.4,176.37,8.74993531]
[1641102712467,40.0,176.4,176.37,4.02493531]
[1641102713972,40.0,176.4,176.32,8.66443865]
[1641102715170,40.0,176.4,176.33,27.66479]
[1641102715772,40.0,176.4,176.33,32.62679]
[1641102719679,40.0,176.4,176.37,4.02493531]
[1641102723688,40.0,176.4,176.33,39.74076905]
[1641102724087,40.0,176.4,176.37,4.02532876]
[1641102724887,40.0,176.4,176.33,39.74076905]
[1641102725789,40.0,176.4,176.37,4.02539839]
[1641102725989,40.0,176.4,176.37,8.92539839]
[1641102726589,40.0,176.4,176.37,4.9]
[1641102726989,40.0,176.4,176.36,17.73913456]
[1641102727589,40.0,176.4,176.38,4.02497925]
[1641102728591,40.0,176.4,176.34,18.24616748]
[1641102728790,37.34,176.4,176.34,18.24616748]
[1641102728992,37.34,176.4,176.34,23.9098041]
[1641102729191,37.34,176.4,176.38,4.02496085]
[1641102730494,37.34,176.4,176.36,12.07597905]
[1641102732294,37.34,176.4,176.39,4.02477207]
[1641102732893,40.05721164,176.4,176.35,13.38359873]
[1641102733594,37.34,176.4,176.36,12.07597905]
[1641102734198,37.34,176.4,176.37,12.07597905]
[1641102734395,37.34,176.4,176.37,26.94465353]
[1641102734596,37.34,176.4,176.37,23.94465353]
[1641102735198,37.34,176.4,176.38,13.38359873]
[1641102736000,30.90122062,176.4,176.38,41.04838873]
[1641102736798,27.95042062,176.4,176.38,41.04838873]
[1641102737098,27.95042062,176.4,176.39,1.30761968]
[1641102739202,27.95042062,176.4,176.39,7.47634891]
[1641102739402,12.04942062,176.4,176.39,11.47634891]
[1641102739599,4.02413862,176.44,176.39,17.13790131]
[1641102739800,4.02413862,176.44,176.39,13.13790131]
[1641102740202,4.02413862,176.44,176.41,27.66479]
[1641102740702,4.02413862,176.45,176.42,1.30761968]
[1641102741804,4.02413862,176.44,176.43,4.02382274]
[1641102742002,4.02413862,176.44,176.43,7.02382274]
[1641102742402,4.02413862,176.44,176.43,12.6840933]
[1641102742602,7.02413862,176.55,176.43,8.66027056]
[1641102742803,30.7737,176.54,176.43,5.66027056]
[1641102743203,3.0,176.51,176.43,5.66027056]
[1641102743407,37.6877,176.54,176.43,5.66027056]
[1641102744006,40.6877,176.54,176.43,5.66027056]
[1641102744207,42.45251478,176.53,176.49,4.02382274]
[1641102744707,3.0,176.5,176.45,12.07095861]
[1641102744907,5.133,176.5,176.45,12.07095861]
[1641102745307,5.133,176.5,176.44,12.07095861]
[1641102745709,2.71530893,176.49,176.44,1.3071129]
[1641102746112,2.71530893,176.49,176.45,3.0]
[1641102746409,2.71530893,176.49,176.45,6.576]
[1641102746610,12.07241585,176.51,176.45,6.576]
[1641102747013,15.07241585,176.51,176.45,6.576]
[1641102747210,15.07241585,176.52,176.46,1.3071129]
[1641102747410,12.07241585,176.52,176.46,1.3071129]
[1641102748011,12.07241585,176.49,176.44,1.3071129]
[1641102749012,12.07241585,176.51,176.44,1.3071129]
[1641102750313,12.07241585,176.5,176.44,1.3071129]
[1641102751014,3.0,176.49,176.44,1.3071129]
[1641102751216,3.0,176.47,176.44,1.3071129]
[1641102751414,3.0,176.46,176.44,1.3071129]
[1641102751612,7.232,176.46,176.44,1.3071129]
[1641102751813,2.71530893,176.45,176.44,1.3071129]
[1641102752317,5.71530893,176.45,176.44,1.3071129]
[1641102752513,5.71530893,176.45,176.42,27.66479]
[1641102752514,2.71530893,176.45,176.42,27.66479]
[1641102753314,14.78772478,176.45,176.42,27.66479]
[1641102754114,14.78772478,176.46,176.42,27.66479]
[1641102755617,3.0,176.45,176.42,27.66479]
[1641102755816,12.07241585,176.47,176.43,1.30705691]
[1641102756421,12.07241585,176.46,176.42,27.66479]
[1641102756916,3.0,176.43,176.42,27.66479]
[1641102757118,12.07241585,176.46,176.42,27.66479]
[1641102757318,14.78772478,176.47,176.43,1.3070379]
[1641102757917,12.07241585,176.46,176.42,27.66479]
[1641102758618,12.07241585,176.45,176.42,27.66479]
[1641102759220,16.44741585,176.45,176.37,12.07095861]
[1641102759618,19.44741585,176.45,176.37,12.07095861]
[1641102759823,3.0,176.39,176.37,12.07095861]
[1641102760021,5.193,176.39,176.37,1.30696701]
[1641102763324,3.0,176.38,176.37,1.30696701]
[1641102763724,3.0,176.39,176.37,1.30696701]
[1641102764429,2.71863185,176.38,176.34,1.30696701]
[1641102764630,30.38342185,176.38,176.34,1.30696701]
[1641102765129,27.66479,176.38,176.31,5.66459909]
[1641102766733,3.0,176.39,176.31,5.66459909]
[1641102766934,3.0,176.39,176.31,11.58259909]
[1641102767434,46.9041,176.44,176.31,11.58259909]
[1641102767435,3.0,176.38,176.31,11.58259909]
[1641102767635,3.0,176.39,176.31,11.58259909]
[1641102768133,3.0,176.38,176.31,11.58259909]
[1641102768735,27.66479,176.37,176.31,11.58259909]
[1641102769340,3.0,176.41,176.31,11.58259909]
[1641102770642,3.0,176.4,176.31,11.58259909]
[1641102770842,27.66479,176.39,176.31,11.58259909]
[1641102772644,2.71850878,176.38,176.33,12.07095861]
[1641102776049,2.71850878,176.38,176.32,13.37786051]
[1641102776649,2.71850878,176.38,176.33,12.07095861]
[1641102777250,2.71850878,176.38,176.33,17.05195861]
[1641102777453,2.71850878,176.38,176.34,5.66379701]
[1641102778051,5.71850878,176.42,176.35,13.37786051]
[1641102778952,2.71850878,176.41,176.35,13.37786051]
[1641102779350,27.66479,176.39,176.35,13.37786051]
[1641102779551,27.66479,176.39,176.35,1.3069019]
[1641102782155,27.66479,176.39,176.35,13.37786051]
[1641102783059,39.73720585,176.43,176.35,13.37786051]
[1641102783261,39.73720585,176.43,176.35,1.3069019]
[1641102784260,2.71796842,176.42,176.35,19.54653938]
[1641102784962,39.73720585,176.43,176.35,13.37786051]
[1641102785162,27.66479,176.43,176.35,1.3069019]
[1641102788072,49.9041,176.44,176.35,1.3069019]
[1641102788671,3.0,176.4,176.35,1.3069019]
[1641102788873,3.0,176.39,176.35,1.3069019]
[1641102789171,3.0,176.4,176.35,1.3069019]
[1641102789371,27.66479,176.4,176.35,1.3069019]
[1641102792877,3.0,176.41,176.35,1.3069019]
[1641102793379,27.66479,176.4,176.35,1.3069019]
[1641102795786,2.71829931,176.39,176.35,1.3069019]
[1641102796490,14.79061496,176.42,176.34,57.06705861]
[1641102796685,14.79061496,176.42,176.34,12.07095861]
[1641102796985,12.9319504,176.43,176.34,12.07095861]
[1641102797588,27.66479,176.4,176.34,12.07095861]
[1641102797787,32.05279,176.4,176.34,12.07095861]
[1641102798787,32.05279,176.4,176.34,1.30692891]
[1641102798788,3.0,176.38,176.34,1.30692891]
[1641102798989,3.0,176.37,176.34,1.30692891]
[1641102799387,2.71858271,176.37,176.33,44.6917]
[1641102799588,27.66479,176.36,176.32,12.07095861]
[1641102799789,33.85579,176.36,176.32,12.07095861]
[1641102800189,36.85579,176.36,176.34,1.30685838]
[1641102800389,36.85579,176.36,176.31,12.07095861]
[1641102800989,36.85579,176.36,176.3,18.23967368]
[1641102801290,30.41411688,176.36,176.3,18.23967368]
[1641102801489,30.41411688,176.36,176.29,3.22091106]
[1641102803190,30.41411688,176.36,176.28,8.3]
[1641102804691,27.41411688,176.36,176.28,8.3]
[1641102805291,21.22311688,176.36,176.28,8.3]
[1641102805892,24.22311688,176.36,176.31,4.00633623]
[1641102806493,21.22311688,176.36,176.31,4.00633623]
[1641102806697,7.00633623,176.37,176.3,4.00633623]
[1641102807193,3.0,176.37,176.31,4.00633623]
[1641102808395,27.66479,176.34,176.31,4.00633623]
[1641102810899,3.0,176.37,176.31,4.00633623]
[1641102811402,27.66479,176.34,176.31,4.00633623]
[1641102812902,3.0,176.37,176.31,4.00633623]
[1641102813303,27.66479,176.34,176.31,4.00633623]
[1641102815207,3.0,176.33,176.31,4.00633623]
[1641102815408,3.0,176.32,176.3,12.07095861]
[1641102815609,3.0,176.31,176.3,12.07095861]
[1641102815806,4.608,176.32,176.3,12.07095861]
[1641102816208,8.61433623,176.32,176.28,12.07095861]
[1641102816809,11.61433623,176.32,176.28,12.07095861]
[1641102817008,8.61433623,176.32,176.28,12.07095861]
[1641102817410,27.66479,176.3,176.27,12.07095861]
[1641102818110,31.67112623,176.3,176.26,12.07095861]
[1641102824218,27.66479,176.3,176.23,27.0965095]
[1641102824820,27.66479,176.3,176.24,12.07095861]
[1641102825418,27.66479,176.3,176.23,27.0965095]
[1641102826320,55.98633623,176.33,176.23,30.0965095]
[1641102826518,55.98633623,176.33,176.23,35.0505095]
[1641102826719,55.98633623,176.33,176.24,12.07095861]
[1641102827421,27.66479,176.31,176.24,12.07095861]
[1641102828823,27.66479,176.31,176.25,12.07095861]
[1641102829723,27.66479,176.31,176.24,12.07095861]
[1641102831830,30.66479,176.31,176.24,12.07095861]
[1641102832130,34.67112623,176.31,176.27,12.07095861]
[1641102832330,31.67112623,176.31,176.27,12.07095861]
[1641102832633,4.00633623,176.31,176.27,12.07095861]
[1641102833231,3.0,176.28,176.27,12.07095861]
[1641102833631,27.66479,176.28,176.27,12.07095861]
[1641102833833,31.67112623,176.28,176.24,12.07095861]
[1641102834633,27.66479,176.28,176.25,12.07095861]
[1641102835335,27.66479,176.28,176.24,12.07095861]
[1641102835336,31.67112623,176.28,176.24,12.07095861]
[1641102837336,27.66479,176.28,176.25,12.07095861]
[1641102837537,4.00633623,176.29,176.25,16.72095861]
[1641102837737,4.00633623,176.3,176.26,12.07095861]
[1641102839037,4.00633623,176.3,176.29,4.02719495]
[1641102839240,30.66479,176.31,176.29,4.02719495]
[1641102840339,2.72099668,176.3,176.29,4.02719495]
[1641102840543,5.72099668,176.3,176.29,4.02719495]
[1641102840739,2.72099668,176.3,176.29,4.02719495]
[1641102841444,5.72099668,176.3,176.29,4.02719495]
[1641102842651,2.72099668,176.3,176.29,4.02719495]
[1641102843154,5.72099668,176.3,176.29,4.02719495]
[1641102845254,3.0,176.3,176.29,4.02719495]
[1641102847357,5.7191435,176.3,176.28,4.02719495]
[1641102847557,3.0,176.29,176.28,4.02719495]
[1641102848360,3.0,176.3,176.28,4.02719495]
[1641102849562,3.0,176.31,176.28,4.02719495]
[1641102849762,30.66479,176.31,176.28,4.02719495]
[1641102850162,3.0,176.29,176.28,4.02719495]
[1641102850362,27.66479,176.31,176.29,4.02719495]
[1641102850363,3.0,176.3,176.29,4.02719495]
[1641102851264,27.66479,176.31,176.29,4.02719495]
[1641102851466,30.66479,176.31,176.29,4.02719495]
[1641102851666,2.71915404,176.3,176.28,4.02719495]
[1641102852066,27.66479,176.31,176.29,4.02719495]
[1641102852567,30.66479,176.31,176.29,4.02719495]
[1641102853167,27.66479,176.31,176.29,4.02719495]
[1641102853367,5.71907079,176.3,176.28,4.02719495]
[1641102854070,3.0,176.3,176.29,4.02719495]
[1641102854471,27.66479,176.31,176.29,4.02719495]
[1641102855173,2.72089613,176.3,176.29,10.24319495]
[1641102856772,39.7423278,176.33,176.29,6.216]
[1641102856973,4.02651663,176.32,176.29,7.52223547]
[1641102857473,4.02651663,176.32,176.3,1.30623547]
[1641102858777,4.02651663,176.32,176.28,12.07095861]
[1641102859877,4.02651663,176.32,176.28,13.37719408]
[1641102862083,27.66479,176.33,176.28,13.37719408]
[1641102862484,27.66479,176.33,176.32,4.02649763]
[1641102863184,27.66479,176.33,176.28,1.30623547]
[1641102863784,3.0,176.35,176.28,1.30623547]
[1641102863985,3.0,176.34,176.28,7.71323547]
[1641102864585,3.0,176.34,176.29,1.30623547]
[1641102866687,3.0,176.34,176.28,1.30623547]
[1641102868190,9.404,176.35,176.28,1.30623547]
[1641102868391,3.0,176.35,176.28,1.30623547]
[1641102868789,27.66479,176.34,176.28,1.30623547]
[1641102869594,27.66479,176.34,176.27,1.30623547]
[1641102872096,3.0,176.35,176.27,1.30623547]
[1641102872995,3.0,176.35,176.27,19.52721137]
[1641102873296,27.66479,176.34,176.27,19.52721137]
[1641102874098,3.0,176.35,176.27,19.52721137]
[1641102875398,27.66479,176.34,176.27,19.52721137]
[1641102875802,27.66479,176.34,176.27,22.74812243]
[1641102876003,2.7201629,176.33,176.28,12.07095861]
[1641102876402,3.0,176.35,176.28,13.37719408]
[1641102877205,3.0,176.34,176.28,13.37719408]
[1641102877604,30.66479,176.34,176.28,13.37719408]
[1641102877805,33.38496366,176.34,176.28,13.37719408]
[1641102878304,2.72017989,176.33,176.32,4.02648961]
[1641102878804,30.66479,176.34,176.28,13.37719408]
[1641102879308,27.66479,176.34,176.28,13.37719408]
[1641102879505,3.0,176.35,176.28,13.37719408]
[1641102879506,3.0,176.35,176.28,17.95519408]
[1641102879904,2.72011818,176.33,176.32,4.02643352]
[1641102880911,3.0,176.35,176.31,12.07095861]
[1641102882609,3.0,176.35,176.32,12.07095861]
[1641102884214,3.0,176.35,176.31,12.07095861]
[1641102885012,2.71988652,176.34,176.33,4.02622292]
[1641102886514,3.0,176.36,176.29,13.37719408]
[1641102886715,27.66479,176.37,176.29,13.37719408]
[1641102887013,3.0,176.35,176.29,13.37719408]
[1641102887214,3.0,176.35,176.34,4.01610013]
[1641102888217,3.0,176.35,176.33,4.0161789]
[1641102888815,3.0,176.35,176.3,52.8572]
[1641102889016,3.0,176.35,176.29,12.07095861]
[1641102889417,3.0,176.36,176.29,12.07095861]
[1641102889616,3.0,176.36,176.33,4.01617936]
[1641102890016,3.0,176.34,176.31,1.30623547]
[1641102890218,3.0,176.36,176.3,12.07095861]
[1641102890615,3.0,176.36,176.31,12.07095861]
[1641102892419,3.0,176.36,176.3,1.30623547]
[1641102893422,3.0,176.36,176.31,12.07095861]
[1641102894023,3.0,176.35,176.31,12.07095861]
[1641102894223,13.10882077,176.35,176.31,12.07095861]
[1641102894722,3.0,176.34,176.31,12.07095861]
[1641102894922,7.02597601,176.34,176.31,12.07095861]
[1641102895122,4.02597601,176.34,176.31,12.07095861]
[1641102895323,7.02597601,176.34,176.31,12.07095861]
[1641102895822,3.0,176.34,176.3,13.37719408]
[1641102896632,4.02621674,176.33,176.3,1.30623547]
[1641102897030,4.02620637,176.34,176.3,13.37719408]
[1641102898432,4.02629044,176.33,176.3,13.37719408]
[1641102898633,4.02629044,176.33,176.3,1.30623547]
[1641102899035,4.0259728,176.35,176.31,12.07095861]
[1641102899440,7.0259728,176.35,176.31,12.07095861]
[1641102899637,4.0259728,176.35,176.31,17.64395861]
[1641102899838,3.0,176.36,176.31,17.64395861]
[1641102900438,4.0259092,176.35,176.32,1.30623547]
[1641102901238,7.02578458,176.36,176.32,12.07095861]
[1641102901640,52.9238,176.39,176.32,12.07095861]
[1641102902040,55.9238,176.39,176.32,12.07095861]
[1641102902239,3.0,176.36,176.32,12.07095861]
[1641102902640,3.0,176.36,176.34,12.07095861]
[1641102903441,52.9238,176.39,176.34,12.07095861]
[1641102903642,4.0253172,176.38,176.34,12.07095861]
[1641102904042,3.0,176.36,176.34,12.07095861]
[1641102904242,9.319,176.37,176.34,12.07095861]
[1641102904441,3.0,176.36,176.34,12.07095861]
[1641102904645,9.319,176.37,176.34,12.07095861]
[1641102905141,9.319,176.37,176.36,4.02583914]
[1641102906043,12.03846718,176.37,176.35,4.02583914]
[1641102906244,5.71946718,176.37,176.35,4.02583914]
[1641102906644,3.0,176.37,176.36,4.02583914]
[1641102907544,3.0,176.37,176.31,1.30623547]
[1641102907545,5.71957257,176.37,176.35,4.02583914]
[1641102908246,2.71957257,176.36,176.35,4.02583914]
[1641102908645,3.0,176.37,176.35,4.02583914]
[1641102909347,2.71957257,176.36,176.35,4.02583914]
[1641102909948,3.0,176.37,176.35,4.02583914]
[1641102911049,2.71957257,176.36,176.35,4.02583914]
[1641102911747,3.0,176.37,176.35,4.02583914]
[1641102912950,2.71824691,176.36,176.35,4.02583914]
[1641102913452,3.0,176.37,176.35,4.02583914]
[1641102913652,3.0,176.36,176.35,4.02583914]
[1641102914154,3.0,176.36,176.34,4.02583914]
[1641102914855,3.0,176.36,176.33,4.02583914]
[1641102915457,3.0,176.36,176.34,4.02583914]
[1641102916958,3.0,176.37,176.34,4.02583914]
[1641102917759,3.0,176.36,176.34,4.02583914]
[1641102917958,5.71824691,176.36,176.35,4.02583914]
[1641102918658,3.0,176.36,176.35,4.02583914]
[1641102920460,5.71824691,176.36,176.34,4.02583914]
[1641102921163,3.0,176.35,176.3,13.37719408]
[1641102921359,3.0,176.31,176.3,13.37719408]
[1641102921562,7.863,176.31,176.3,13.37719408]
[1641102921763,7.863,176.31,176.3,12.07095861]
[1641102921962,4.863,176.31,176.3,12.07095861]
[1641102922163,32.52779,176.31,176.3,12.07095861]
[1641102922363,32.52779,176.31,176.29,1.3060229]
[1641102923364,32.52779,176.31,176.26,12.07095861]
[1641102925068,27.66479,176.31,176.26,12.07095861]
[1641102925270,88.89540528,176.34,176.26,12.07095861]
[1641102925469,88.89540528,176.34,176.26,16.72095861]
[1641102926569,2.72021536,176.33,176.28,12.07095861]
[1641102927271,76.81919,176.34,176.29,12.07095861]
[1641102929370,49.1544,176.34,176.29,12.07095861]
[1641102929771,49.1544,176.34,176.29,13.37698151]
[1641102930372,2.72050879,176.33,176.29,1.3060229]
[1641102932876,3.0,176.32,176.29,1.3060229]
[1641102933079,2.72050879,176.33,176.29,1.3060229]
[1641102936079,12.07621528,176.35,176.29,1.3060229]
[1641102936681,12.07621528,176.35,176.29,28.9708129]
[1641102936884,27.66479,176.38,176.32,12.07095861]
[1641102939486,12.07621528,176.4,176.32,12.07095861]
[1641102939687,12.07621528,176.39,176.31,61.99625861]
[1641102941090,27.66479,176.38,176.31,61.99625861]
[1641102942389,12.07621528,176.39,176.31,61.99625861]
[1641102943191,27.66479,176.38,176.32,18.23829201]
[1641102943593,27.66479,176.38,176.32,12.07095861]
[1641102943792,39.74100528,176.38,176.31,49.9253]
[1641102944893,12.07621528,176.37,176.31,49.9253]
[1641102946295,27.66479,176.38,176.31,61.99625861]
[1641102946495,27.66479,176.38,176.31,67.56525861]
[1641102946897,39.74100528,176.38,176.31,55.4943]
[1641102947595,3.0,176.37,176.31,55.4943]
[1641102947795,3.0,176.36,176.3,12.07095861]
[1641102948397,3.0,176.36,176.29,12.07095861]
[1641102948999,12.07621528,176.35,176.27,62.24213102]
[1641102949298,12.07621528,176.35,176.27,65.24213102]
[1641102949499,12.07621528,176.35,176.28,3.0]
[1641102949698,12.07621528,176.36,176.29,27.66479]
[1641102950598,12.07621528,176.39,176.31,12.07095861]
[1641102950799,12.07621528,176.39,176.31,59.09025861]
[1641102951799,59.35701528,176.4,176.32,18.23858793]
[1641102954202,47.2808,176.4,176.33,12.07095861]
[1641102955103,59.35701528,176.4,176.32,21.46026034]
[1641102957809,65.90301528,176.4,176.32,21.46026034]
[1641102958708,65.90301528,176.4,176.32,18.23858793]
[1641102958909,12.07621528,176.39,176.31,59.09025861]
[1641102960210,27.66479,176.38,176.31,59.09025861]
[1641102960912,12.07621528,176.39,176.31,59.09025861]
[1641102961110,12.07621528,176.39,176.31,63.72625861]
[1641102961617,59.35701528,176.4,176.32,18.23824368]
[1641102962213,12.07621528,176.39,176.31,86.75504861]
[1641102962913,12.07621528,176.39,176.31,59.09025861]
[1641102964119,12.07621528,176.39,176.31,86.75504861]
[1641102965121,74.94559,176.4,176.31,86.75504861]
[1641102966125,12.07606214,176.39,176.31,59.09025861]
[1641102966526,18.52806214,176.39,176.32,27.66479]
[1641102966927,6.452,176.39,176.32,27.66479]
[1641102967328,6.452,176.39,176.32,30.88564589]
[1641102967530,4.53001228,176.39,176.32,30.88564589]
[1641102967729,59.35699568,176.4,176.32,30.88564589]
[1641102968630,12.07619568,176.39,176.32,30.88564589]
[1641102972939,65.19099568,176.4,176.32,30.88564589]
[1641102973138,59.35699568,176.4,176.32,30.88564589]
[1641102974744,12.07619568,176.39,176.32,30.88564589]
[1641102975646,12.07619568,176.39,176.32,3.22085589]
[1641102976447,14.79472861,176.39,176.33,1.30561567]
[1641102977449,14.79472861,176.39,176.33,28.97040567]
[1641102978051,14.79472861,176.39,176.34,1.30561567]
[1641102980055,14.79472861,176.39,176.34,6.89661567]
[1641102980453,2.71853293,176.39,176.35,1.30561567]
[1641102980951,2.71853293,176.39,176.33,27.66479]
[1641102980952,2.71853293,176.39,176.34,1.30561567]
[1641102981652,14.79472861,176.39,176.35,4.02406227]
[1641102982354,2.71853293,176.39,176.35,4.02406227]
[1641102982854,2.71853293,176.39,176.35,9.38006227]
[1641102983954,2.71853293,176.39,176.36,5.32967794]
[1641102985354,2.71853293,176.39,176.36,4.02406227]
[1641102987855,3.0,176.37,176.36,4.02406227]
[1641102988056,6.389,176.38,176.34,1.30561567]
[1641102989256,6.389,176.38,176.33,1.30561567]
[1641102989257,30.38332293,176.37,176.33,1.30561567]
[1641102989959,2.71853293,176.36,176.33,1.30561567]
[1641102991462,2.71853293,176.36,176.32,1.30561567]
[1641102999765,30.38332293,176.36,176.32,1.30561567]